bitfinex-derivatives/quotes_SOLF0:USTF0_20260114
["timestamp","ask_amount","ask_price","bid_price","bid_amount"]
[1768430401748,3.24102086,146.01,145.94,80.86]
[1768430402055,0.05069303,145.98,145.96,0.04463414]
[1768430402846,3.24102086,146.04,145.96,3.34910298]
[1768430403043,3.24102086,146.04,145.96,3.30446884]
[1768430403752,0.04774087,146.01,145.99,0.04572451]
[1768430403949,3.24102086,146.07,146.0,80.88]
[1768430404252,2.09830165,146.09,146.0,84.18446884]
[1768430404444,5.33932251,146.09,146.0,84.18446884]
[1768430404955,0.04502812,146.06,146.03,0.05241822]
[1768430406448,0.04502812,146.06,146.04,80.88]
[1768430407553,0.04502812,146.06,146.03,0.05241822]
[1768430407758,0.04502812,146.06,146.03,57.50015312]
[1768430407945,0.04502812,146.06,146.03,15.61675312]
[1768430408251,0.04502812,146.06,146.03,80.9]
[1768430408452,0.04502812,146.06,146.03,65.7169]
[1768430408648,0.04502812,146.06,146.03,22.617]
[1768430408856,0.04502812,146.06,146.03,8.01184667]
[1768430409556,0.04502812,146.06,146.03,4.667e-05]
[1768430410548,2.14332977,146.06,146.03,4.667e-05]
[1768430411560,2.14332977,146.06,146.01,80.9]
[1768430412658,2.14332977,146.06,146.02,0.04944116]
[1768430413560,0.04502812,146.06,146.02,0.04944116]
[1768430413862,2.14332977,146.06,146.02,0.04944116]
[1768430414160,5.38435063,146.06,146.02,0.04944116]
[1768430415664,11.54655063,146.06,146.02,0.04944116]
[1768430415966,3.24102086,146.05,146.01,70.6016]
[1768430416160,5.33932251,146.05,145.97,3.30446884]
[1768430416462,5.33932251,146.05,145.98,80.9]
[1768430416863,0.04616822,146.03,145.98,80.9]
[1768430418464,0.04616822,146.03,145.92,3.30446884]
[1768430418465,2.09830165,146.0,145.92,3.30446884]
[1768430418668,2.09830165,146.0,145.93,80.9]
[1768430418669,0.04624564,145.97,145.93,80.9]
[1768430418869,0.04624564,145.97,145.89,3.30446884]
[1768430419256,0.04624564,145.97,145.9,84.20446884]
[1768430419573,0.04580101,145.95,145.91,80.92]
[1768430420265,3.20653023,146.01,145.92,3.30446884]
[1768430420969,1.10822858,146.01,145.93,3.05130958]
[1768430421361,0.0444315,145.98,145.96,0.04580101]
[1768430421565,1.10822858,146.01,145.97,80.92]
[1768430422568,0.04618668,146.0,145.97,80.92]
[1768430423465,2.14448833,146.0,145.97,80.92]
[1768430425661,2.14448833,146.0,145.96,0.04580101]
[1768430425868,0.04618668,146.0,145.97,80.92]
[1768430428373,0.04618668,146.0,145.98,70.4083]
[1768430428571,0.04618668,146.0,145.98,70.3638685]
[1768430430060,0.04618668,146.0,145.98,49.6450685]
[1768430430372,0.04618668,146.0,145.96,0.04580101]
[1768430430566,0.04618668,146.0,145.97,80.94]
[1768430430762,0.04618668,146.0,145.97,49.4581]
[1768430432370,2.09830165,145.98,145.96,0.04580101]
[1768430432556,2.09830165,145.98,145.92,3.23031522]
[1768430432763,2.09830165,145.98,145.92,84.17031522]
[1768430433063,8.26360165,145.98,145.92,84.17031522]
[1768430433468,0.05027234,145.96,145.94,0.0444315]
[1768430436174,6.21647234,145.96,145.9,3.23031522]
[1768430437575,6.1666,145.95,145.9,3.23031522]
[1768430438571,6.1666,145.95,145.88,3.23031522]
[1768430438773,0.04325913,145.93,145.88,84.19031522]
[1768430439473,0.04325913,145.93,145.88,3.23031522]
[1768430440269,0.04325913,145.93,145.86,84.19031522]
[1768430440470,0.04325913,145.93,145.86,3.23031522]
[1768430440670,0.04325913,145.93,145.86,5.32861687]
[1768430440871,6.21065913,145.93,145.86,5.32861687]
[1768430441277,6.21065913,145.93,145.86,3.23031522]
[1768430442983,6.21065913,145.93,145.86,9.40051522]
[1768430443285,6.21065913,145.93,145.87,3.23031522]
[1768430444787,6.1678,145.92,145.87,3.23031522]
[1768430446283,0.04325913,145.93,145.87,3.23031522]
[1768430447988,6.21055913,145.93,145.87,3.23031522]
[1768430448595,6.21055913,145.93,145.89,3.23031522]
[1768430448596,0.04325913,145.93,145.89,3.23031522]
[1768430450286,0.04325913,145.93,145.87,3.23031522]
[1768430450588,0.05145047,145.91,145.87,3.23031522]
[1768430451592,0.05145047,145.91,145.82,3.28966234]
[1768430451787,0.04322454,145.88,145.83,80.98]
[1768430452090,1.15531412,145.93,145.83,80.98]
[1768430452995,0.05169791,145.89,145.87,0.04322454]
[1768430466398,3.01200438,145.92,145.87,0.04322454]
[1768430466598,5.07136986,145.91,145.87,0.04322454]
[1768430466800,3.01200438,145.92,145.87,0.04322454]
[1768430466801,9.17980438,145.92,145.87,0.04322454]
[1768430467195,6.1678,145.92,145.87,3.20286483]
[1768430467393,0.04668541,145.91,145.87,3.20286483]
[1768430468700,0.04668541,145.91,145.87,0.04322454]
[1768430469104,0.04668541,145.91,145.87,3.20286483]
[1768430469303,3.05868979,145.91,145.87,0.04322454]
[1768430469514,9.22688979,145.91,145.84,3.15964029]
[1768430469702,6.21488541,145.91,145.84,3.15964029]
[1768430469900,6.21488541,145.91,145.85,3.15964029]
[1768430470302,0.04668541,145.91,145.85,3.15964029]
[1768430470609,0.04668541,145.91,145.87,0.04337065]
[1768430476406,3.05868979,145.91,145.87,0.04337065]
[1768430476603,0.04668541,145.91,145.87,0.04337065]
[1768430483006,0.04668541,145.91,145.87,3.28148451]
[1768430483211,3.35136732,145.91,145.87,0.04337065]
[1768430483411,5.07660732,145.9,145.87,0.04337065]
[1768430483618,0.04668541,145.91,145.87,0.04337065]
[1768430483818,5.07659179,145.9,145.87,0.04337065]
[1768430484018,0.04668541,145.91,145.87,0.04337065]
[1768430484320,5.07643906,145.9,145.87,0.04337065]
[1768430484521,0.04668541,145.91,145.87,0.04337065]
[1768430484723,5.07583607,145.9,145.87,0.04337065]
[1768430484920,3.35136732,145.91,145.87,0.04337065]
[1768430485118,5.0766417,145.9,145.87,0.04337065]
[1768430485318,3.35136732,145.91,145.87,0.04337065]
[1768430485516,5.07696323,145.9,145.87,0.04337065]
[1768430485716,3.35136732,145.91,145.87,0.04337065]
[1768430485920,5.07732978,145.9,145.87,0.04337065]
[1768430486121,3.35136732,145.91,145.87,0.04337065]
[1768430486321,5.07761386,145.9,145.87,0.04337065]
[1768430486518,3.35136732,145.91,145.87,0.04337065]
[1768430486723,5.07752312,145.9,145.87,0.04337065]
[1768430486923,3.35136732,145.91,145.87,0.04337065]
[1768430487223,5.07752312,145.9,145.87,0.04337065]
[1768430487420,3.35136732,145.91,145.87,0.04337065]
[1768430487621,5.07747914,145.9,145.87,0.04337065]
[1768430487922,3.35136732,145.91,145.87,0.04337065]
[1768430488120,5.07747332,145.9,145.87,0.04337065]
[1768430488318,3.35136732,145.91,145.87,0.04337065]
[1768430488520,5.07751215,145.9,145.87,0.04337065]
[1768430488823,3.35136732,145.91,145.87,0.04337065]
[1768430489020,5.07749839,145.9,145.87,0.04337065]
[1768430489220,95.9216,145.96,145.87,0.04337065]
[1768430489221,3.30468191,145.97,145.87,3.28148451]
[1768430489422,1.19292472,145.99,145.89,3.23811386]
[1768430489423,5.07809946,145.96,145.89,3.23811386]
[1768430489720,5.07948025,145.95,145.9,3.23811386]
[1768430489916,3.30468191,146.01,145.92,3.23811386]
[1768430490313,0.04395705,145.98,145.92,3.23811386]
[1768430490525,3.30468191,146.01,145.94,3.28250438]
[1768430491621,3.30468191,146.04,145.96,3.23811386]
[1768430492531,0.04451672,146.01,145.99,0.05029048]
[1768430493525,3.30468191,146.04,145.99,0.05029048]
[1768430494630,0.04830435,146.03,145.99,0.05029048]
[1768430495427,3.35298626,146.03,145.99,0.05029048]
[1768430495625,3.35298626,146.03,145.96,3.23811386]
[1768430496326,0.04830435,146.03,145.96,3.23811386]
[1768430496630,0.04830435,146.03,145.98,0.05131185]
[1768430498425,3.35298626,146.03,145.98,0.05131185]
[1768430498626,3.30468191,146.01,145.98,0.05131185]
[1768430498829,3.30468191,146.01,145.92,3.23811386]
[1768430499929,0.04490118,145.98,145.95,0.0492846]
[1768430504840,3.30468191,146.03,145.95,3.28739846]
[1768430505046,6.164,146.01,145.95,3.28739846]
[1768430505749,9.46808191,146.03,145.95,3.28739846]
[1768430505936,0.05180495,146.0,145.95,3.28739846]
[1768430511758,0.05180495,146.0,145.95,0.0492846]
[1768430511759,3.13138521,146.0,145.95,0.0492846]
[1768430513952,0.05180495,146.0,145.96,3.06229825]
[1768430514159,0.05180495,146.0,145.95,0.0492846]
[1768430514662,6.21620495,146.0,145.95,0.0492846]
[1768430516857,9.29578521,146.0,145.95,0.0492846]
[1768430517065,6.21620495,146.0,145.95,0.0492846]
[1768430519068,6.21620495,146.0,145.95,3.11158285]
[1768430519563,0.05180495,146.0,145.95,3.11158285]
[1768430520662,6.1635,146.03,145.95,3.11158285]
[1768430520855,5.18304966,146.04,145.97,9.22779825]
[1768430521060,5.18304966,146.04,145.98,3.06229825]
[1768430521459,2.1034694,146.05,145.99,3.06229825]
[1768430521665,2.1034694,146.05,146.01,0.05227368]
[1768430521863,0.04881409,146.03,146.01,0.05227368]
[1768430531471,6.1615,146.07,146.01,0.05227368]
[1768430531472,8.2649694,146.07,146.01,0.05227368]
[1768430531773,5.01663464,146.06,146.01,0.05227368]
[1768430531975,2.1034694,146.07,146.01,0.05227368]
[1768430532271,5.01651982,146.06,146.01,0.05227368]
[1768430532468,0.04375325,146.05,146.01,0.05227368]
[1768430533169,3.07958026,146.07,146.01,3.11457193]
[1768430533369,5.0230528,146.06,146.01,3.11457193]
[1768430533671,5.0230528,146.05,146.01,3.11457193]
[1768430533873,3.07958026,146.07,146.01,3.11457193]
[1768430534072,5.0230577,146.06,146.01,3.11457193]
[1768430534268,5.07354178,146.05,146.01,3.11457193]
[1768430534474,5.0230577,146.04,146.01,3.11457193]
[1768430535169,0.05048408,146.05,146.01,3.11457193]
[1768430549180,6.1614,146.07,146.02,1.36]
[1768430549385,6.1606,146.09,146.03,3.20758128]
[1768430549680,5.02760317,146.08,146.03,3.20758128]
[1768430549882,5.02760317,146.07,146.03,3.20758128]
[1768430550083,6.1606,146.09,146.03,3.20758128]
[1768430550274,0.04320304,146.07,146.05,0.04790435]
[1768430552686,3.07641302,146.11,146.05,0.04790435]
[1768430552983,5.02415463,146.1,146.05,9.41768563]
[1768430553188,3.07641302,146.11,146.05,9.41768563]
[1768430553488,5.03322984,146.1,146.05,9.41768563]
[1768430553680,0.04576221,146.09,146.05,9.41768563]
[1768430554991,0.04576221,146.09,146.06,3.20758128]
[1768430555382,2.1034694,146.12,146.06,3.20758128]
[1768430555584,5.03150994,146.11,146.06,3.20758128]
[1768430555787,2.1034694,146.12,146.06,3.20758128]
[1768430556495,5.17988242,146.12,146.06,3.20758128]
[1768430556792,0.04994791,146.1,146.05,9.41768563]
[1768430559990,0.04994791,146.1,146.06,3.20758128]
[1768430560386,0.04994791,146.1,146.05,6.21010435]
[1768430560588,5.22983033,146.1,146.05,6.21010435]
[1768430562390,3.12636093,146.1,146.05,6.21010435]
[1768430564091,3.12636093,146.1,146.05,9.41768563]
[1768430564092,0.04994791,146.1,146.05,9.41768563]
[1768430567897,5.03329767,146.09,146.05,9.41768563]
[1768430568093,0.04994791,146.1,146.06,3.20758128]
[1768430570095,3.07641302,146.12,146.06,9.36918128]
[1768430570296,5.03460909,146.11,146.06,9.36918128]
[1768430570596,5.03460909,146.1,146.06,9.36918128]
[1768430570896,3.07641302,146.12,146.06,9.36918128]
[1768430571089,0.04556537,146.1,146.06,9.36918128]
[1768430578095,0.04556537,146.1,146.06,3.20758128]
[1768430585206,9.47947597,146.14,146.06,3.20758128]
[1768430585513,5.03058075,146.13,146.06,3.20758128]
[1768430585701,5.03058075,146.12,146.06,3.20758128]
[1768430586009,5.03058075,146.11,146.06,3.20758128]
[1768430586211,5.03058075,146.1,146.06,3.20758128]
[1768430587309,5.03058075,146.1,146.07,3.33025699]
[1768430587920,6.1585,146.14,146.07,3.33025699]
[1768430588808,9.47947597,146.14,146.07,3.33025699]
[1768430589014,0.04883227,146.12,146.07,3.33025699]
[1768430595820,0.04883227,146.12,146.07,9.49155699]
[1768430596007,0.04883227,146.12,146.08,3.28055867]
[1768430598519,0.04883227,146.12,146.08,9.44145867]
[1768430599615,90.37817597,146.17,146.1,3.28055867]
[1768430600112,3.32097597,146.16,146.1,3.28055867]
[1768430600706,0.04974667,146.14,146.12,0.04627091]
[1768430602112,3.04356426,146.18,146.12,0.04627091]
[1768430603226,6.1565,146.19,146.12,0.04627091]
[1768430603227,3.07695347,146.16,146.12,0.04627091]
[1768430603917,3.07695347,146.16,146.08,6.1607]
[1768430604122,3.07695347,146.16,146.08,3.15093208]
[1768430605017,3.07695347,146.16,146.11,0.05147472]
[1768430605518,3.04356426,146.14,146.08,3.15093208]
[1768430605918,3.04356426,146.14,146.06,9.31263208]
[1768430606717,3.04356426,146.14,146.09,0.04514682]
[1768430607014,6.1578,146.16,146.09,0.04514682]
[1768430607015,3.09504001,146.13,146.09,0.04514682]
[1768430607327,5.09690109,146.12,146.09,0.04514682]
[1768430607526,5.09690109,146.11,146.09,0.04514682]
[1768430607717,5.09690109,146.1,146.06,9.31263208]
[1768430608024,3.04356426,146.13,146.06,3.15093208]
[1768430608222,5.09696037,146.12,146.06,3.15093208]
[1768430608422,5.09696037,146.11,146.06,3.15093208]
[1768430608623,5.09696037,146.1,146.06,3.15093208]
[1768430608824,5.14196137,146.09,146.07,0.04812662]
[1768430609026,0.045001,146.09,146.07,0.04812662]
[1768430615529,3.04356426,146.12,146.07,0.04812662]
[1768430615730,5.11264229,146.11,146.07,0.04812662]
[1768430616029,5.11264229,146.1,146.07,0.04812662]
[1768430616230,5.11264229,146.09,146.07,0.04812662]
[1768430616430,3.04356426,146.12,146.07,0.04812662]
[1768430618933,0.05143369,146.11,146.07,0.04812662]
[1768430625541,0.05143369,146.11,146.07,3.1990587]
[1768430628344,5.09250055,146.1,146.07,3.1990587]
[1768430628646,0.05143369,146.11,146.07,3.1990587]
[1768430628947,5.09250055,146.1,146.07,3.1990587]
[1768430629152,0.05143369,146.11,146.07,3.1990587]
[1768430629445,5.09244315,146.1,146.07,3.1990587]
[1768430629647,0.05143369,146.11,146.07,3.1990587]
[1768430629847,5.09239109,146.1,146.07,3.1990587]
[1768430630046,0.05143369,146.11,146.07,3.1990587]
[1768430630347,5.09242394,146.1,146.07,3.1990587]
[1768430630544,0.05143369,146.11,146.07,3.1990587]
[1768430630739,5.09228809,146.1,146.07,3.1990587]
[1768430630934,0.05143369,146.11,146.07,3.1990587]
[1768430631140,5.09193579,146.1,146.07,3.1990587]
[1768430631340,0.05143369,146.11,146.07,3.1990587]
[1768430631541,5.09205178,146.1,146.07,3.1990587]
[1768430631851,0.05143369,146.11,146.07,3.1990587]
[1768430632051,5.09205178,146.1,146.07,3.1990587]
[1768430632348,0.05143369,146.11,146.07,3.1990587]
[1768430632657,5.09222641,146.1,146.07,3.1990587]
[1768430632941,0.05143369,146.11,146.07,3.1990587]
[1768430633148,5.09223094,146.1,146.07,3.1990587]
[1768430633347,0.05143369,146.11,146.07,3.1990587]
[1768430633548,5.0930182,146.1,146.07,3.1990587]
[1768430633748,0.05143369,146.11,146.07,3.1990587]
[1768430633949,5.09303532,146.1,146.07,3.1990587]
[1768430634148,0.05143369,146.11,146.07,3.1990587]
[1768430634351,5.09303532,146.1,146.07,3.1990587]
[1768430634552,0.05143369,146.11,146.07,3.1990587]
[1768430634752,5.09302818,146.1,146.07,3.1990587]
[1768430635049,0.05143369,146.11,146.07,3.1990587]
[1768430635247,5.09448959,146.1,146.07,0.04812662]
[1768430635450,0.05143369,146.11,146.07,0.04812662]
[1768430635651,5.09302126,146.1,146.07,3.25975555]
[1768430635847,0.05143369,146.11,146.07,3.25975555]
[1768430636044,5.09278554,146.1,146.07,3.25975555]
[1768430636244,0.05143369,146.11,146.07,3.25975555]
[1768430636552,5.09295972,146.1,146.07,3.25975555]
[1768430636751,0.05143369,146.11,146.07,3.25975555]
[1768430636938,5.09286008,146.1,146.07,3.25975555]
[1768430637143,0.05143369,146.11,146.07,3.25975555]
[1768430637452,5.09316935,146.1,146.07,3.25975555]
[1768430637754,0.05143369,146.11,146.07,3.25975555]
[1768430637949,5.09357433,146.1,146.07,3.25975555]
[1768430638148,0.05143369,146.11,146.07,3.25975555]
[1768430638351,5.09357433,146.1,146.07,3.25975555]
[1768430638656,3.03267082,146.14,146.07,3.25975555]
[1768430639549,0.05186564,146.12,146.07,3.25975555]
[1768430642748,0.05186564,146.12,146.08,3.21162893]
[1768430643653,0.05186564,146.12,146.08,9.37232893]
[1768430643842,3.03267082,146.16,146.09,3.21162893]
[1768430644847,9.18967082,146.18,146.12,3.21162893]
[1768430645644,0.02798133,146.16,146.12,3.21162893]
[1768430661265,3.14523018,146.21,146.12,3.21162893]
[1768430661459,5.05935733,146.2,146.12,3.21162893]
[1768430661663,5.05935733,146.19,146.12,3.21162893]
[1768430661965,5.05935733,146.18,146.12,3.21162893]
[1768430662165,5.24520821,146.21,146.14,3.24596807]
[1768430662465,5.24520821,146.21,146.14,3.29710766]
[1768430663867,5.24520821,146.21,146.15,3.24596807]
[1768430664063,3.14523018,146.21,146.15,3.24596807]
[1768430668267,3.14523018,146.21,146.15,9.40376807]
[1768430668470,3.14523018,146.21,146.16,3.24596807]
[1768430668673,3.14523018,146.21,146.17,0.05141686]
[1768430672661,3.14523018,146.25,146.18,3.24596807]
[1768430672971,3.14523018,146.23,146.16,3.24596807]
[1768430673570,6.1555,146.21,146.16,3.24596807]
[1768430673964,0.05152108,146.2,146.17,0.04786398]
[1768430674559,0.05152108,146.2,146.14,3.24596807]
[1768430674560,3.14523018,146.19,146.14,3.24596807]
[1768430674764,3.14523018,146.19,146.07,95.842]
[1768430674765,3.14523018,146.19,146.11,3.24596807]
[1768430674964,3.14523018,146.17,146.11,3.24596807]
[1768430675567,0.04474222,146.15,146.13,0.04958642]
[1768430679169,3.1899724,146.15,146.09,3.24596807]
[1768430680372,3.1899724,146.15,146.11,0.04924494]
[1768430680769,9.3481724,146.15,146.11,0.04924494]
[1768430682076,5.03380137,146.14,146.11,0.04924494]
[1768430682279,9.3481724,146.15,146.11,0.04924494]
[1768430682475,5.03487816,146.14,146.11,0.04924494]
[1768430682780,9.3481724,146.15,146.11,0.04924494]
[1768430682968,5.03469283,146.14,146.11,0.04924494]
[1768430683172,9.3481724,146.15,146.11,0.04924494]
[1768430683373,5.03444317,146.14,146.11,0.04924494]
[1768430683572,9.3481724,146.15,146.11,0.04924494]
[1768430683776,5.03535233,146.14,146.11,0.04924494]
[1768430683976,9.3481724,146.15,146.11,0.04924494]
[1768430684178,5.03535233,146.14,146.11,0.04924494]
[1768430684375,8.18074821,146.13,146.07,9.40706807]
[1768430684575,3.14523018,146.13,146.07,3.24596807]
[1768430684878,9.30413018,146.13,146.07,3.24596807]
[1768430685471,0.04797058,146.11,146.09,0.04449446]
[1768430690383,3.14265717,146.11,146.02,3.01665398]
[1768430690689,3.09468659,146.09,146.02,3.01665398]
[1768430690875,5.01410947,146.08,146.02,3.01665398]
[1768430691077,3.09468659,146.09,146.02,3.01665398]
[1768430691286,5.01268881,146.08,146.02,3.01665398]
[1768430691480,3.09468659,146.09,146.04,0.04344121]
[1768430691680,5.00883057,146.08,146.04,0.04344121]
[1768430691874,6.161,146.08,146.04,0.04344121]
[1768430693386,9.25568659,146.08,146.04,0.04344121]
[1768430696588,0.04703916,146.07,146.04,0.04344121]
[1768430698490,3.14172575,146.07,146.04,0.04344121]
[1768430699485,9.30312575,146.07,146.04,0.04344121]
[1768430701384,9.25658659,146.06,146.0,3.01665398]
[1768430702395,3.09468659,146.06,146.02,0.05083328]
[1768430706693,0.04703916,146.07,146.02,0.05083328]
[1768430707797,0.04703916,146.07,146.02,9.23098726]
[1768430709404,0.04703916,146.07,146.03,9.17965398]
[1768430709599,3.09468659,146.1,146.03,9.17965398]
[1768430710502,3.09468659,146.1,146.04,3.01665398]
[1768430710701,3.09468659,146.1,146.05,0.04957315]
[1768430711297,9.25398659,146.12,146.05,3.06622713]
[1768430711503,3.09468659,146.12,146.07,0.04853445]
[1768430713188,0.04595746,146.11,146.07,0.04853445]
[1768430714800,0.04595746,146.11,146.07,3.06518843]
[1768430715597,0.04595746,146.11,146.07,0.04853445]
[1768430716107,3.14064405,146.11,146.07,0.04853445]
[1768430717807,3.09468659,146.1,146.07,0.04853445]
[1768430718202,3.09468659,146.1,146.03,9.17955398]
[1768430718408,9.25488659,146.1,146.03,9.17955398]
[1768430718610,3.09468659,146.09,146.03,3.01665398]
[1768430719404,3.09468659,146.09,146.05,0.04546368]
[1768430722401,0.04999253,146.08,146.05,0.04546368]
[1768430725612,3.30400851,146.08,146.01,3.28033333]
[1768430725911,3.25401598,146.08,146.01,3.28033333]
[1768430726810,0.05117295,146.06,146.03,0.0488753]
[1768430732911,3.30518893,146.06,146.03,0.0488753]
[1768430733714,0.05117295,146.06,146.03,0.0488753]
[1768430733910,3.25401598,146.08,146.03,0.0488753]
[1768430734112,5.02057182,146.07,146.03,0.0488753]
[1768430734416,3.25401598,146.08,146.03,0.0488753]
[1768430734621,8.27511159,146.07,146.03,0.0488753]
[1768430734808,0.04346599,146.06,146.03,0.0488753]
[1768430743427,3.29748197,146.06,146.03,0.0488753]
[1768430748328,0.04346599,146.06,146.03,0.0488753]
[1768430748824,3.29748197,146.06,146.03,0.0488753]
[1768430752423,0.04346599,146.06,146.03,0.0488753]
[1768430752627,3.31613445,146.08,146.03,0.0488753]
[1768430752827,5.0279436,146.07,146.03,0.0488753]
[1768430753126,3.31613445,146.08,146.03,0.0488753]
[1768430753326,5.02903191,146.07,146.03,0.0488753]
[1768430753527,3.31613445,146.08,146.03,0.0488753]
[1768430753727,5.02906583,146.07,146.03,0.0488753]
[1768430753932,3.31613445,146.08,146.03,0.0488753]
[1768430754133,5.02906583,146.07,146.03,0.0488753]
[1768430754425,3.31613445,146.08,146.03,0.0488753]
[1768430754633,5.07395504,146.07,146.03,0.0488753]
[1768430754932,0.04487922,146.07,146.03,0.0488753]
[1768430756231,6.1597,146.11,146.03,9.31075024]
[1768430756429,5.02966525,146.1,146.03,9.26187494]
[1768430756734,5.02966525,146.09,146.03,9.26187494]
[1768430757233,5.02966525,146.09,146.05,0.04685957]
[1768430758132,5.02966525,146.09,146.05,3.14583451]
[1768430758325,5.07429274,146.08,146.05,3.14583451]
[1768430758525,6.525e-05,146.07,146.05,3.14583451]
[1768430758731,0.04462749,146.08,146.05,3.14583451]
[1768430758925,9.47573445,146.12,146.05,9.30803451]
[1768430759935,0.04644606,146.1,146.05,9.30803451]
[1768430761426,9.47483445,146.14,146.07,9.26037494]
[1768430761932,3.31613445,146.13,146.07,9.26037494]
[1768430762432,3.31613445,146.13,146.09,0.04366902]
[1768430762732,3.0027782,146.1,145.97,2.1004475]
[1768430762927,3.0027782,146.08,145.98,3.09897494]
[1768430763320,2.1004475,146.09,145.98,3.09897494]
[1768430763527,95.818,146.12,145.98,3.09897494]
[1768430763528,3.0027782,146.11,145.98,3.09897494]
[1768430763728,176.6894,146.16,145.95,95.9187]
[1768430763729,5.1032257,146.17,146.06,3.09897494]
[1768430764032,3.0027782,146.16,146.06,3.09897494]
[1768430764734,3.0027782,146.16,146.1,0.05178442]
[1768430770435,5.1331993,146.15,146.1,0.05178442]
[1768430770627,5.1331993,146.14,146.1,0.05178442]
[1768430770926,5.1331993,146.13,146.1,0.05178442]
[1768430771122,3.0027782,146.16,146.1,0.05178442]
[1768430771322,8.13544475,146.15,146.1,0.05178442]
[1768430771534,5.13266655,146.14,146.1,0.05178442]
[1768430772927,3.0027782,146.15,146.1,0.05178442]
[1768430773826,5.13023333,146.14,146.1,0.05178442]
[1768430774032,3.0027782,146.15,146.1,0.05178442]
[1768430774433,5.12902807,146.14,146.1,0.05178442]
[1768430774727,3.0027782,146.15,146.1,0.05178442]
[1768430775131,3.0027782,146.15,146.1,6.21178442]
[1768430778941,2.1004475,146.16,146.11,6.1596]
[1768430779534,3.0027782,146.16,146.11,6.1596]
[1768430779731,5.1032257,146.18,146.12,6.1592]
[1768430779935,5.12507575,146.17,146.14,0.0486132]
[1768430780138,85.9832257,146.18,146.14,0.0486132]
[1768430780448,5.1032257,146.18,146.14,0.0486132]
[1768430780635,85.9832257,146.18,146.14,0.0486132]
[1768430781844,5.1032257,146.18,146.14,0.0486132]
[1768430782041,85.9832257,146.18,146.14,0.0486132]
[1768430783047,5.1032257,146.18,146.14,0.0486132]
[1768430783246,80.86,146.17,146.14,0.0486132]
[1768430786344,80.86,146.17,146.11,9.25867494]
[1768430786738,80.86,146.17,146.12,9.42628487]
[1768430786939,83.86307737,146.17,146.12,6.1592]
[1768430787141,3.00307737,146.17,146.1,3.26708487]
[1768430787338,3.00307737,146.17,146.13,6.1588]
[1768430787545,0.04577301,146.15,146.13,6.1588]
[1768430788848,82.9604475,146.18,146.13,6.1588]
[1768430789344,3.00307737,146.2,146.13,6.1588]
[1768430789652,82.9604475,146.19,146.13,6.1588]
[1768430789947,83.86307737,146.19,146.15,0.04891105]
[1768430790147,85.96352487,146.19,146.15,0.04891105]
[1768430790950,83.86307737,146.19,146.15,0.04891105]
[1768430791150,85.96352487,146.19,146.15,0.04891105]
[1768430792245,3.00307737,146.19,146.15,0.04891105]
[1768430793349,83.86307737,146.19,146.15,0.04891105]
[1768430793854,3.00307737,146.21,146.15,3.31599592]
[1768430794146,82.9604475,146.2,146.15,3.31599592]
[1768430796749,80.86,146.2,146.15,3.31599592]
[1768430797052,82.9604475,146.21,146.16,3.26708487]
[1768430797453,80.86,146.21,146.16,3.26708487]
[1768430797652,2.1004475,146.22,146.17,3.26708487]
[1768430797847,2.1004475,146.22,146.12,97.9067475]
[1768430797848,2.1004475,146.22,146.18,3.31975996]
[1768430798249,80.86,146.23,146.18,3.31975996]
[1768430800045,3.00307737,146.23,146.18,0.05267509]
[1768430800254,83.84307737,146.23,146.18,0.05267509]
[1768430803455,3.00307737,146.23,146.18,0.05267509]
[1768430803652,83.84307737,146.23,146.18,0.05267509]
[1768430804654,3.00307737,146.23,146.18,0.05267509]
[1768430804856,83.84307737,146.23,146.18,0.05267509]
[1768430805659,2.1004475,146.24,146.18,9.47635996]
[1768430805956,82.9404475,146.24,146.18,9.47635996]
[1768430806258,5.10352487,146.24,146.18,9.47635996]
[1768430806446,80.82,146.23,146.18,9.47635996]
[1768430807056,5.10352487,146.24,146.18,9.47635996]
[1768430807259,85.92352487,146.24,146.18,9.47635996]
[1768430808758,5.10352487,146.24,146.18,9.47635996]
[1768430808946,85.92352487,146.24,146.18,9.47635996]
[1768430809259,5.10352487,146.24,146.18,9.47635996]
[1768430809450,85.92352487,146.24,146.18,9.47635996]
[1768430809650,82.9204475,146.24,146.19,3.26708487]
[1768430809860,2.1004475,146.24,146.19,3.26708487]
[1768430810063,82.9204475,146.24,146.19,3.26708487]
[1768430812063,3.0019045,146.23,146.18,0.05267509]
[1768430812252,2.1004475,146.22,146.18,0.05267509]
[1768430812654,2.1004475,146.22,146.18,9.44474471]
[1768430812853,3.0019045,146.22,146.18,6.20917509]
[1768430813052,5.102352,146.22,146.18,6.20917509]
[1768430814662,3.0019045,146.24,146.19,6.1562]
[1768430814863,5.102352,146.24,146.19,6.1562]
[1768430816458,80.82,146.26,146.2,6.1555]
[1768430816659,82.9204475,146.26,146.22,0.04774555]
[1768430817254,80.82,146.26,146.22,0.04774555]
[1768430817763,6.1511,146.32,146.22,6.20264555]
[1768430817959,89.21688198,146.31,146.26,0.05159018]
[1768430818156,5.12142089,146.3,146.23,3.23556962]
[1768430818356,5.12142089,146.3,146.23,9.39016962]
[1768430819053,5.12142089,146.3,146.24,6.1541]